[Event "*** Titled Tuesday Blitz"]
[Site "Chess.com"]
[Date "2021.02.09"]
[Round "9"]
[White "WPWPWP-2015"]
[Black "GM_Huschenbeth"]
[Result "1/2-1/2"]
[WhiteElo "2490"]
[BlackElo "2599"]
[TimeControl "180+1"]
[EndTime "11:45:33 PST"]
[Termination "Game drawn by repetition"]

1. e4 {[%clk 0:02:47.5]} 1... c5 {[%clk 0:02:53.5]} 2. Nf3 {[%clk 0:02:46.7]}
2... d6 {[%clk 0:02:53.3]} 3. d4 {[%clk 0:02:47.1]} 3... cxd4 {[%clk 0:02:54.2]}
4. Nxd4 {[%clk 0:02:47.3]} 4... Nf6 {[%clk 0:02:54.6]} 5. Nc3 {[%clk 0:02:47.9]}
5... a6 {[%clk 0:02:54.5]} 6. h3 {[%clk 0:02:46.6]} 6... e5 {[%clk 0:02:53.8]}
7. Nde2 {[%clk 0:02:46.4]} 7... h5 {[%clk 0:02:51.6]} 8. Nd5 {[%clk 0:02:45.6]}
8... Nxd5 {[%clk 0:02:43.3]} 9. Qxd5 {[%clk 0:02:44.9]} 9... Nd7 {[%clk
0:02:38.3]} 10. Be3 {[%clk 0:02:43]} 10... Nf6 {[%clk 0:02:38]} 11. Qd3 {[%clk
0:02:42.3]} 11... d5 {[%clk 0:02:32.2]} 12. exd5 {[%clk 0:02:41.5]} 12... Qxd5
{[%clk 0:02:33.1]} 13. Nc3 {[%clk 0:02:37.5]} 13... Bb4 {[%clk 0:02:20.3]} 14.
O-O-O {[%clk 0:02:35.3]} 14... Qxd3 {[%clk 0:02:19.9]} 15. Bxd3 {[%clk
0:02:24.9]} 15... Bxc3 {[%clk 0:02:06.5]} 16. bxc3 {[%clk 0:02:25.8]} 16... Be6
{[%clk 0:02:07]} 17. Rhe1 {[%clk 0:02:09.6]} 17... Nd7 {[%clk 0:02:02.7]} 18.
Be4 {[%clk 0:02:05.2]} 18... Rc8 {[%clk 0:01:38.4]} 19. Bxb7 {[%clk 0:01:49.1]}
19... Rxc3 {[%clk 0:01:37.7]} 20. Bxa6 {[%clk 0:01:48.8]} 20... Ra3 {[%clk
0:01:09.4]} 21. Bb5 {[%clk 0:01:42.6]} 21... Rxa2 {[%clk 0:01:07.4]} 22. Bc5
{[%clk 0:01:33.8]} 22... Ra1+ {[%clk 0:00:40.6]} 23. Kd2 {[%clk 0:01:18.3]}
23... Ra5 {[%clk 0:00:24.5]} 24. Bxd7+ {[%clk 0:01:07.9]} 24... Kxd7 {[%clk
0:00:25.4]} 25. Rxe5 {[%clk 0:01:06.9]} 25... Kc6 {[%clk 0:00:25]} 26. Bd4
{[%clk 0:00:58.8]} 26... Rxe5 {[%clk 0:00:21.5]} 27. Bxe5 {[%clk 0:00:59.7]}
27... Rd8+ {[%clk 0:00:20.2]} 28. Ke1 {[%clk 0:00:59.1]} 28... Rxd1+ {[%clk
0:00:19.9]} 29. Kxd1 {[%clk 0:00:58.9]} 29... g6 {[%clk 0:00:19.9]} 30. h4
{[%clk 0:00:56.8]} 30... Kd5 {[%clk 0:00:20]} 31. Bf6 {[%clk 0:00:56.1]} 31...
Kc4 {[%clk 0:00:19]} 32. Kd2 {[%clk 0:00:55.6]} 32... Bf5 {[%clk 0:00:17.7]} 33.
c3 {[%clk 0:00:54]} 33... Be6 {[%clk 0:00:18.1]} 34. Ke3 {[%clk 0:00:54]} 34...
Bd5 {[%clk 0:00:18.3]} 35. f3 {[%clk 0:00:53.9]} 35... Be6 {[%clk 0:00:18.6]}
36. Bd4 {[%clk 0:00:53.4]} 36... Bd5 {[%clk 0:00:18.9]} 37. Kf4 {[%clk
0:00:53.1]} 37... Be6 {[%clk 0:00:19.8]} 38. g4 {[%clk 0:00:52.3]} 38... Bd5
{[%clk 0:00:17.9]} 39. Kg3 {[%clk 0:00:51.5]} 39... Kd3 {[%clk 0:00:17.7]} 40.
Kf4 {[%clk 0:00:50.6]} 40... Kc4 {[%clk 0:00:17.7]} 41. Be5 {[%clk 0:00:50.6]}
41... Kd3 {[%clk 0:00:17.6]} 42. Bf6 {[%clk 0:00:50.7]} 42... Kc4 {[%clk
0:00:18]} 43. Ke3 {[%clk 0:00:50]} 43... Be6 {[%clk 0:00:17.8]} 44. Kf4 {[%clk
0:00:46.7]} 44... Bd5 {[%clk 0:00:18]} 45. gxh5 {[%clk 0:00:45.7]} 45... gxh5
{[%clk 0:00:18.3]} 46. Ke3 {[%clk 0:00:43.6]} 46... Be6 {[%clk 0:00:18.3]} 47.
Ke4 {[%clk 0:00:43.8]} 47... Bd5+ {[%clk 0:00:18.5]} 48. Kf4 {[%clk 0:00:43.3]}
48... Kd3 {[%clk 0:00:19]} 49. Bd4 {[%clk 0:00:43.2]} 49... Kc4 {[%clk
0:00:16.2]} 50. Be5 {[%clk 0:00:42.3]} 50... Kd3 {[%clk 0:00:16.5]} 51. Bg7
{[%clk 0:00:42.2]} 51... Kc4 {[%clk 0:00:16.7]} 52. Ke3 {[%clk 0:00:32]} 52...
Be6 {[%clk 0:00:16.4]} 53. Bd4 {[%clk 0:00:27.1]} 53... Bd5 {[%clk 0:00:16.5]}
54. Be5 {[%clk 0:00:27]} 54... Be6 {[%clk 0:00:16.5]} 55. Ke4 {[%clk 0:00:26.7]}
55... Bd5+ {[%clk 0:00:17.2]} 56. Kf4 {[%clk 0:00:26.7]} 56... Kd3 {[%clk
0:00:17.7]} 57. Bd4 {[%clk 0:00:26.3]} 57... Kc4 {[%clk 0:00:17.4]} 58. Ke3
{[%clk 0:00:22.4]} 58... Be6 {[%clk 0:00:17.2]} 59. f4 {[%clk 0:00:22.8]} 59...
Bf5 {[%clk 0:00:14.8]} 60. Bf6 {[%clk 0:00:21.9]} 60... Kd5 {[%clk 0:00:14.7]}
61. Be5 {[%clk 0:00:20.6]} 61... Kc4 {[%clk 0:00:15.1]} 62. Bf6 {[%clk
0:00:18.9]} 62... Kd5 {[%clk 0:00:16]} 63. Be5 {[%clk 0:00:18.8]} 63... Kc4
{[%clk 0:00:16.9]} 64. Bf6 {[%clk 0:00:18.8]} 1/2-1/2

[Event "*** Titled Tuesday Blitz"]
[Site "Chess.com"]
[Date "2021.02.09"]
[Round "9"]
[White "Noam_Vitenberg"]
[Black "ecwinslow"]
[Result "1-0"]
[WhiteElo "2406"]
[BlackElo "2261"]
[TimeControl "180+1"]
[EndTime "11:45:36 PST"]
[Termination "Noam_Vitenberg won by resignation"]

1. b3 {[%clk 0:03:00.8]} 1... e5 {[%clk 0:02:58.1]} 2. Bb2 {[%clk 0:03:01.1]}
2... d6 {[%clk 0:02:58.1]} 3. e3 {[%clk 0:03:01.6]} 3... Nf6 {[%clk 0:02:57.6]}
4. Nf3 {[%clk 0:02:54]} 4... g6 {[%clk 0:02:55.8]} 5. d4 {[%clk 0:02:52.6]} 5...
exd4 {[%clk 0:02:55.7]} 6. Nxd4 {[%clk 0:02:51.7]} 6... Bg7 {[%clk 0:02:54.1]}
7. Be2 {[%clk 0:02:52.2]} 7... O-O {[%clk 0:02:53.9]} 8. O-O {[%clk 0:02:51.8]}
8... Re8 {[%clk 0:02:45.8]} 9. c4 {[%clk 0:02:50.4]} 9... Nbd7 {[%clk
0:02:44.5]} 10. Nc3 {[%clk 0:02:48.6]} 10... Nc5 {[%clk 0:02:30.9]} 11. Rc1
{[%clk 0:02:30.5]} 11... c6 {[%clk 0:02:24.9]} 12. Bf3 {[%clk 0:02:04.7]} 12...
a5 {[%clk 0:02:22.3]} 13. Qd2 {[%clk 0:01:59.3]} 13... a4 {[%clk 0:02:10.3]} 14.
b4 {[%clk 0:01:58.6]} 14... a3 {[%clk 0:02:07.9]} 15. Ba1 {[%clk 0:01:58]} 15...
Nce4 {[%clk 0:02:01.8]} 16. Nxe4 {[%clk 0:01:55.9]} 16... Nxe4 {[%clk
0:02:00.7]} 17. Qc2 {[%clk 0:01:56.4]} 17... Qe7 {[%clk 0:01:45.5]} 18. Rfd1
{[%clk 0:01:48.8]} 18... c5 {[%clk 0:01:29.4]} 19. Nb5 {[%clk 0:01:39.5]} 19...
Bxa1 {[%clk 0:01:26.6]} 20. Rxa1 {[%clk 0:01:40.4]} 20... Bf5 {[%clk 0:01:18.8]}
21. Qb3 {[%clk 0:01:31]} 21... cxb4 {[%clk 0:01:11.5]} 22. Qxb4 {[%clk
0:01:21.4]} 22... Nxf2 {[%clk 0:00:58.5]} 23. Kxf2 {[%clk 0:00:56.8]} 23...
Qxe3+ {[%clk 0:00:57.4]} 24. Kg3 {[%clk 0:00:56.9]} 24... Qg5+ {[%clk
0:00:54.8]} 25. Kf2 {[%clk 0:00:56.8]} 25... Qe3+ {[%clk 0:00:54.9]} 26. Kf1
{[%clk 0:00:51.3]} 26... Bd3+ {[%clk 0:00:53.8]} 27. Rxd3 {[%clk 0:00:51.4]}
27... Qxd3+ {[%clk 0:00:54]} 28. Kg1 {[%clk 0:00:51.9]} 28... Rad8 {[%clk
0:00:45]} 29. Re1 {[%clk 0:00:46.2]} 29... Rxe1+ {[%clk 0:00:36.3]} 30. Qxe1
{[%clk 0:00:47.1]} 30... Qxc4 {[%clk 0:00:36.3]} 31. Qb1 {[%clk 0:00:40.5]}
31... Rc8 {[%clk 0:00:30.9]} 32. h3 {[%clk 0:00:29.3]} 32... d5 {[%clk 0:00:25]}
33. Kh1 {[%clk 0:00:18.3]} 33... Qc1+ {[%clk 0:00:21.6]} 34. Qxc1 {[%clk
0:00:18.3]} 34... Rxc1+ {[%clk 0:00:21]} 35. Kh2 {[%clk 0:00:19.2]} 35... Rc5
{[%clk 0:00:17.9]} 36. Nd4 {[%clk 0:00:19.1]} 36... b5 {[%clk 0:00:15.5]} 37.
Nb3 {[%clk 0:00:18.4]} 37... Rc2 {[%clk 0:00:15.4]} 38. Nd4 {[%clk 0:00:13.1]}
38... Rxa2 {[%clk 0:00:14.8]} 39. Nxb5 {[%clk 0:00:14]} 39... Rb2 {[%clk
0:00:14.2]} 40. Nxa3 {[%clk 0:00:13.4]} 40... d4 {[%clk 0:00:12.2]} 41. Nc4
{[%clk 0:00:13.1]} 41... Ra2 {[%clk 0:00:12.2]} 42. Bd5 {[%clk 0:00:11.8]} 42...
d3 {[%clk 0:00:11.4]} 43. Bf3 {[%clk 0:00:07.9]} 43... Rc2 {[%clk 0:00:10.5]}
44. Ne3 {[%clk 0:00:07.7]} 44... Rc5 {[%clk 0:00:10]} 45. Kg3 {[%clk 0:00:07.7]}
45... d2 {[%clk 0:00:10]} 46. Nd1 {[%clk 0:00:07.4]} 46... Re5 {[%clk
0:00:08.7]} 47. Kf2 {[%clk 0:00:07.7]} 47... f5 {[%clk 0:00:07.8]} 48. Ne3
{[%clk 0:00:06.8]} 48... Kg7 {[%clk 0:00:07.4]} 49. g3 {[%clk 0:00:05.6]} 49...
g5 {[%clk 0:00:05.5]} 50. Nc4 {[%clk 0:00:04.5]} 50... Re7 {[%clk 0:00:03.8]}
51. Nxd2 {[%clk 0:00:05]} 51... f4 {[%clk 0:00:01.9]} 52. gxf4 {[%clk
0:00:03.4]} 52... gxf4 {[%clk 0:00:01.9]} 53. Ne4 {[%clk 0:00:03.6]} 53... Kg6
{[%clk 0:00:01.5]} 54. Nc3 {[%clk 0:00:02.8]} 54... Kf5 {[%clk 0:00:01.5]} 55.
Nd5 {[%clk 0:00:03.7]} 55... Ke5 {[%clk 0:00:01.7]} 56. Nxe7 {[%clk 0:00:03.7]}
1-0

[Event "*** Titled Tuesday Blitz"]
[Site "Chess.com"]
[Date "2021.02.09"]
[Round "9"]
[White "aa175"]
[Black "Taran2004"]
[Result "0-1"]
[WhiteElo "2591"]
[BlackElo "2479"]
[TimeControl "180+1"]
[EndTime "11:45:37 PST"]
[Termination "Taran2004 won by resignation"]

1. d4 {[%clk 0:03:00.9]} 1... Nf6 {[%clk 0:02:58.9]} 2. Nf3 {[%clk 0:03:00.8]}
2... g6 {[%clk 0:02:59]} 3. Bf4 {[%clk 0:03:01]} 3... Bg7 {[%clk 0:02:59.4]} 4.
e3 {[%clk 0:03:01.1]} 4... O-O {[%clk 0:02:59.6]} 5. Be2 {[%clk 0:03:01]} 5...
d6 {[%clk 0:03:00.1]} 6. O-O {[%clk 0:03:00.8]} 6... Nbd7 {[%clk 0:03:00.5]} 7.
c4 {[%clk 0:03:01.1]} 7... b6 {[%clk 0:03:00.9]} 8. Nc3 {[%clk 0:03:01.4]} 8...
Bb7 {[%clk 0:03:01.1]} 9. Qc2 {[%clk 0:03:01.7]} 9... c5 {[%clk 0:03:01.3]} 10.
d5 {[%clk 0:02:50.4]} 10... a6 {[%clk 0:02:53.8]} 11. a4 {[%clk 0:02:47.2]}
11... Ne8 {[%clk 0:02:51.6]} 12. a5 {[%clk 0:02:44]} 12... b5 {[%clk 0:02:34.9]}
13. cxb5 {[%clk 0:02:39.8]} 13... axb5 {[%clk 0:02:35.8]} 14. Bxb5 {[%clk
0:02:38.4]} 14... Nc7 {[%clk 0:02:34.8]} 15. Bc4 {[%clk 0:02:24.8]} 15... Na6
{[%clk 0:02:31.4]} 16. e4 {[%clk 0:02:04.3]} 16... Nb4 {[%clk 0:02:26.3]} 17.
Qe2 {[%clk 0:02:00.6]} 17... Rxa5 {[%clk 0:02:25.6]} 18. Rxa5 {[%clk 0:01:59.3]}
18... Qxa5 {[%clk 0:02:26.5]} 19. Ne1 {[%clk 0:01:52.4]} 19... Ba6 {[%clk
0:02:23.3]} 20. Bxa6 {[%clk 0:01:48.1]} 20... Qxa6 {[%clk 0:02:24.2]} 21. Qxa6
{[%clk 0:01:46.1]} 21... Nxa6 {[%clk 0:02:25.1]} 22. Nc2 {[%clk 0:01:43.3]}
22... Rb8 {[%clk 0:02:23.8]} 23. Na4 {[%clk 0:01:35.7]} 23... Nb6 {[%clk
0:02:18.7]} 24. b3 {[%clk 0:01:14.6]} 24... Nxa4 {[%clk 0:02:00.2]} 25. bxa4
{[%clk 0:01:15.5]} 25... Rb2 {[%clk 0:02:00.1]} 26. Ne3 {[%clk 0:00:51.6]} 26...
Ra2 {[%clk 0:01:59.8]} 27. Rb1 {[%clk 0:00:51.8]} 27... Nb4 {[%clk 0:01:55.3]}
28. Nc4 {[%clk 0:00:41]} 28... Rxa4 {[%clk 0:01:52.6]} 29. Bd2 {[%clk
0:00:36.3]} 29... h6 {[%clk 0:01:42.4]} 30. Kf1 {[%clk 0:00:19]} 30... Nxd5
{[%clk 0:01:27.9]} 31. Nxd6 {[%clk 0:00:03.6]} 31... exd6 {[%clk 0:01:28.3]} 32.
exd5 {[%clk 0:00:04.5]} 32... Rd4 {[%clk 0:01:26]} 33. Rb8+ {[%clk 0:00:03.6]}
33... Kh7 {[%clk 0:01:25.7]} 34. Ke2 {[%clk 0:00:03]} 34... Rxd5 {[%clk
0:01:25.4]} 35. Rb7 {[%clk 0:00:03.1]} 35... Re5+ {[%clk 0:01:16]} 36. Kd3
{[%clk 0:00:03.1]} 36... Rf5 {[%clk 0:01:11.4]} 37. f3 {[%clk 0:00:02.4]} 37...
g5 {[%clk 0:01:09.9]} 38. Ke4 {[%clk 0:00:02]} 38... Kg6 {[%clk 0:01:08.9]} 39.
Rd7 {[%clk 0:00:01.7]} 39... Re5+ {[%clk 0:01:05.6]} 40. Kd3 {[%clk 0:00:01.9]}
40... d5 {[%clk 0:01:03.9]} 41. g4 {[%clk 0:00:02.5]} 41... c4+ {[%clk
0:01:01.8]} 42. Kc2 {[%clk 0:00:02.2]} 42... Re2 {[%clk 0:00:59.1]} 43. Rd6+
{[%clk 0:00:02.5]} 43... Kh7 {[%clk 0:00:57.7]} 44. Kd1 {[%clk 0:00:03.1]} 44...
Rxh2 {[%clk 0:00:57.2]} 45. Rxd5 {[%clk 0:00:03.6]} 45... c3 {[%clk 0:00:57.6]}
46. Bc1 {[%clk 0:00:03.5]} 46... c2+ {[%clk 0:00:56.5]} 47. Ke1 {[%clk
0:00:03.5]} 47... Rh1+ {[%clk 0:00:56.2]} 48. Kd2 {[%clk 0:00:03.5]} 48... Rh2+
{[%clk 0:00:53.4]} 49. Kd3 {[%clk 0:00:03.9]} 49... Kg6 {[%clk 0:00:50.3]} 50.
Rd6+ {[%clk 0:00:04]} 50... f6 {[%clk 0:00:50]} 51. Rd7 {[%clk 0:00:04.2]} 51...
Bf8 {[%clk 0:00:48.3]} 52. Rc7 {[%clk 0:00:04.3]} 52... Bd6 {[%clk 0:00:48.2]}
53. Rc6 {[%clk 0:00:03]} 53... Bf4 {[%clk 0:00:45.4]} 54. Bxf4 {[%clk
0:00:02.4]} 54... gxf4 {[%clk 0:00:45.3]} 55. Rxc2 {[%clk 0:00:02.3]} 55... Rxc2
{[%clk 0:00:44.2]} 56. Kxc2 {[%clk 0:00:03.2]} 56... Kg5 {[%clk 0:00:41.9]} 57.
Kd3 {[%clk 0:00:03.4]} 57... Kh4 {[%clk 0:00:42.3]} 58. Ke4 {[%clk 0:00:02.1]}
58... Kg3 {[%clk 0:00:42.6]} 59. Kf5 {[%clk 0:00:01.8]} 59... Kxf3 {[%clk
0:00:43.2]} 60. Kxf6 {[%clk 0:00:02.1]} 60... Kxg4 {[%clk 0:00:43.6]} 61. Kg6
{[%clk 0:00:02.4]} 61... f3 {[%clk 0:00:44.5]} 62. Kg7 {[%clk 0:00:02.4]} 62...
f2 {[%clk 0:00:45.4]} 63. Kf7 {[%clk 0:00:03]} 63... f1=Q+ {[%clk 0:00:46.3]}
64. Ke8 {[%clk 0:00:03.7]} 64... Qf6 {[%clk 0:00:46.2]} 65. Kd7 {[%clk
0:00:03.5]} 65... Qe5 {[%clk 0:00:46.7]} 66. Kc6 {[%clk 0:00:03.5]} 66... Qd4
{[%clk 0:00:46.8]} 67. Kb5 {[%clk 0:00:04.4]} 67... Qc3 {[%clk 0:00:46]} 68. Kb6
{[%clk 0:00:03.8]} 68... Qc4 {[%clk 0:00:46.3]} 69. Kb7 {[%clk 0:00:04.3]} 69...
Qc5 {[%clk 0:00:46.7]} 70. Ka8 {[%clk 0:00:04.7]} 70... Qb5 {[%clk 0:00:47.2]}
0-1

[Event "*** Titled Tuesday Blitz"]
[Site "Chess.com"]
[Date "2021.02.09"]
[Round "9"]
[White "bazar-wokzal"]
[Black "Gloomy_Wanderer"]
[Result "0-1"]
[WhiteElo "2552"]
[BlackElo "2738"]
[TimeControl "180+1"]
[EndTime "11:45:43 PST"]
[Termination "Gloomy_Wanderer won by resignation"]

1. e4 {[%clk 0:01:16.7]} 1... c5 {[%clk 0:02:59.9]} 2. c3 {[%clk 0:01:16.6]}
2... a6 {[%clk 0:03:00]} 3. d4 {[%clk 0:01:16.3]} 3... cxd4 {[%clk 0:03:00.9]}
4. cxd4 {[%clk 0:01:16.6]} 4... d5 {[%clk 0:03:01.6]} 5. e5 {[%clk 0:01:15.5]}
5... Nc6 {[%clk 0:03:01.9]} 6. Nc3 {[%clk 0:01:15.7]} 6... Bf5 {[%clk
0:03:02.1]} 7. Nf3 {[%clk 0:01:14.9]} 7... e6 {[%clk 0:03:02]} 8. Be3 {[%clk
0:01:13.4]} 8... Qb6 {[%clk 0:03:01.8]} 9. Qd2 {[%clk 0:01:10.9]} 9... Rc8
{[%clk 0:03:01.5]} 10. Be2 {[%clk 0:01:10.4]} 10... Bb4 {[%clk 0:02:57.4]} 11.
O-O {[%clk 0:01:08.2]} 11... Na5 {[%clk 0:02:55]} 12. Nh4 {[%clk 0:01:07.4]}
12... Ne7 {[%clk 0:02:51.5]} 13. Bg5 {[%clk 0:01:03.1]} 13... Bg6 {[%clk
0:02:33]} 14. Rac1 {[%clk 0:01:00]} 14... Nc4 {[%clk 0:02:24.2]} 15. Bxc4 {[%clk
0:00:57.7]} 15... Rxc4 {[%clk 0:02:25.1]} 16. Bxe7 {[%clk 0:00:56.5]} 16... Bxe7
{[%clk 0:02:07]} 17. Nxg6 {[%clk 0:00:50]} 17... hxg6 {[%clk 0:01:51.2]} 18. Ne2
{[%clk 0:00:48.4]} 18... O-O {[%clk 0:01:36.6]} 19. b3 {[%clk 0:00:47.8]} 19...
Rxc1 {[%clk 0:01:35.8]} 20. Rxc1 {[%clk 0:00:47.1]} 20... Qb5 {[%clk 0:01:07.4]}
21. g3 {[%clk 0:00:46]} 21... Bb4 {[%clk 0:01:02]} 22. Qe3 {[%clk 0:00:45.3]}
22... Qd7 {[%clk 0:01:00.5]} 23. Kg2 {[%clk 0:00:42.8]} 23... Rc8 {[%clk
0:00:59.2]} 24. h4 {[%clk 0:00:39.3]} 24... Ba3 {[%clk 0:00:56.2]} 25. Rxc8+
{[%clk 0:00:33.6]} 25... Qxc8 {[%clk 0:00:57.1]} 26. Qc3 {[%clk 0:00:33.7]}
26... Qxc3 {[%clk 0:00:52.1]} 27. Nxc3 {[%clk 0:00:34.6]} 27... f6 {[%clk
0:00:52.7]} 28. f4 {[%clk 0:00:31.3]} 28... Kf7 {[%clk 0:00:52.6]} 29. Kf3
{[%clk 0:00:31.4]} 29... Bb4 {[%clk 0:00:49.6]} 30. Ne2 {[%clk 0:00:30.6]} 30...
Ke7 {[%clk 0:00:47.7]} 31. Ke3 {[%clk 0:00:30.7]} 31... Kf7 {[%clk 0:00:45]} 32.
Kd3 {[%clk 0:00:30.9]} 32... Kg8 {[%clk 0:00:40.8]} 33. Ke3 {[%clk 0:00:26.4]}
33... Be7 {[%clk 0:00:37.2]} 34. Nc3 {[%clk 0:00:20.3]} 34... Kf7 {[%clk
0:00:26.1]} 35. Na4 {[%clk 0:00:20.5]} 35... Ke8 {[%clk 0:00:25.2]} 36. Kd3
{[%clk 0:00:18.7]} 36... Kd7 {[%clk 0:00:25]} 37. Nc3 {[%clk 0:00:17.3]} 37...
Kc6 {[%clk 0:00:20.2]} 38. a4 {[%clk 0:00:15]} 38... Bb4 {[%clk 0:00:19.1]} 39.
Na2 {[%clk 0:00:14.9]} 39... Be1 {[%clk 0:00:18.7]} 40. exf6 {[%clk 0:00:14]}
40... gxf6 {[%clk 0:00:18.5]} 41. g4 {[%clk 0:00:13.9]} 41... Bxh4 {[%clk
0:00:18.3]} 42. f5 {[%clk 0:00:11.2]} 42... gxf5 {[%clk 0:00:16.7]} 43. gxf5
{[%clk 0:00:12.1]} 43... e5 {[%clk 0:00:17.1]} 44. Nc3 {[%clk 0:00:11.3]} 44...
e4+ {[%clk 0:00:16.6]} 45. Ke2 {[%clk 0:00:08.8]} 45... Bg3 {[%clk 0:00:16.4]}
46. Nd1 {[%clk 0:00:08.5]} 46... Bf4 {[%clk 0:00:14.2]} 47. Nf2 {[%clk
0:00:08.6]} 47... Kd6 {[%clk 0:00:14.5]} 48. Ng4 {[%clk 0:00:08.6]} 48... Bg5
{[%clk 0:00:13.9]} 49. Kf2 {[%clk 0:00:07.6]} 49... Ke7 {[%clk 0:00:11.3]} 50.
Ke2 {[%clk 0:00:07.4]} 50... Bf4 {[%clk 0:00:10.6]} 51. Kd1 {[%clk 0:00:07.2]}
51... Bc7 {[%clk 0:00:07.5]} 52. Kc2 {[%clk 0:00:07.1]} 52... Bf4 {[%clk
0:00:06.9]} 53. b4 {[%clk 0:00:07.1]} 53... b5 {[%clk 0:00:06.7]} 54. Kb3 {[%clk
0:00:07]} 54... bxa4+ {[%clk 0:00:05.7]} 55. Kxa4 {[%clk 0:00:07]} 55... e3
{[%clk 0:00:06.6]} 0-1

[Event "*** Titled Tuesday Blitz"]
[Site "Chess.com"]
[Date "2021.02.09"]
[Round "9"]
[White "MFguimaraes"]
[Black "ChessQueen"]
[Result "0-1"]
[WhiteElo "2422"]
[BlackElo "2787"]
[TimeControl "180+1"]
[EndTime "11:45:44 PST"]
[Termination "ChessQueen won by resignation"]

1. e4 {[%clk 0:02:55]} 1... c6 {[%clk 0:02:59.8]} 2. Bc4 {[%clk 0:02:53.8]} 2...
d5 {[%clk 0:02:56.6]} 3. Bb3 {[%clk 0:02:54.4]} 3... e6 {[%clk 0:02:55.1]} 4.
Nc3 {[%clk 0:02:50.7]} 4... Nf6 {[%clk 0:02:48]} 5. e5 {[%clk 0:02:46.8]} 5...
Nfd7 {[%clk 0:02:47.9]} 6. d4 {[%clk 0:02:47.3]} 6... c5 {[%clk 0:02:48.1]} 7.
Be3 {[%clk 0:02:28.4]} 7... Nc6 {[%clk 0:02:46.5]} 8. Nf3 {[%clk 0:02:27.7]}
8... a6 {[%clk 0:02:44.6]} 9. dxc5 {[%clk 0:02:25.8]} 9... Ndxe5 {[%clk
0:02:39.3]} 10. Nxe5 {[%clk 0:02:24.2]} 10... Nxe5 {[%clk 0:02:39.3]} 11. Qh5
{[%clk 0:02:17.2]} 11... Nd7 {[%clk 0:02:33.1]} 12. O-O-O {[%clk 0:02:15.2]}
12... Nf6 {[%clk 0:02:23.7]} 13. Qe2 {[%clk 0:02:09.3]} 13... Be7 {[%clk
0:02:21.7]} 14. g4 {[%clk 0:02:05.4]} 14... O-O {[%clk 0:02:13]} 15. g5 {[%clk
0:02:05.4]} 15... Nd7 {[%clk 0:02:13.3]} 16. h4 {[%clk 0:01:44]} 16... Bxc5
{[%clk 0:02:13]} 17. h5 {[%clk 0:01:39.4]} 17... d4 {[%clk 0:01:19.8]} 18. Ne4
{[%clk 0:01:17.3]} 18... dxe3 {[%clk 0:01:09.6]} 19. Nxc5 {[%clk 0:01:17]} 19...
Qc7 {[%clk 0:00:48.9]} 20. Nxd7 {[%clk 0:01:12.8]} 20... Bxd7 {[%clk 0:00:49.8]}
21. Qxe3 {[%clk 0:01:11.2]} 21... a5 {[%clk 0:00:50.1]} 22. c3 {[%clk
0:01:05.4]} 22... Bc6 {[%clk 0:00:27.6]} 23. Rh4 {[%clk 0:00:59.8]} 23... Rad8
{[%clk 0:00:27.3]} 24. Rg1 {[%clk 0:00:58.3]} 24... Kh8 {[%clk 0:00:19.5]} 25.
g6 {[%clk 0:00:50.6]} 25... Qe7 {[%clk 0:00:17.3]} 26. Rhg4 {[%clk 0:00:45.8]}
26... f5 {[%clk 0:00:15.9]} 27. Rg5 {[%clk 0:00:34.5]} 27... f4 {[%clk
0:00:16.3]} 28. Qe5 {[%clk 0:00:33.9]} 28... h6 {[%clk 0:00:16.8]} 29. R5g4
{[%clk 0:00:20.7]} 29... Qf6 {[%clk 0:00:16.4]} 30. Qxe6 {[%clk 0:00:15.2]}
30... Qxe6 {[%clk 0:00:16]} 31. Bxe6 {[%clk 0:00:16.1]} 31... Rde8 {[%clk
0:00:16.4]} 32. Bc4 {[%clk 0:00:16]} 32... Re5 {[%clk 0:00:16.4]} 33. a3 {[%clk
0:00:15.4]} 33... Rxh5 {[%clk 0:00:15.9]} 34. Re1 {[%clk 0:00:14.5]} 34... Rh1
{[%clk 0:00:14.4]} 35. Rgg1 {[%clk 0:00:14.4]} 35... Rxg1 {[%clk 0:00:14.2]} 36.
Rxg1 {[%clk 0:00:15.3]} 36... b5 {[%clk 0:00:13.2]} 37. Bf7 {[%clk 0:00:15.6]}
37... Be4 {[%clk 0:00:11.9]} 38. Re1 {[%clk 0:00:15.2]} 38... Bd3 {[%clk
0:00:10.5]} 39. Re5 {[%clk 0:00:15.4]} 39... Rd8 {[%clk 0:00:09.3]} 40. Rd5
{[%clk 0:00:13]} 40... Rxd5 {[%clk 0:00:08.7]} 41. Bxd5 {[%clk 0:00:13.9]} 41...
Bxg6 {[%clk 0:00:09]} 42. b4 {[%clk 0:00:14.5]} 42... axb4 {[%clk 0:00:08.8]}
43. axb4 {[%clk 0:00:14.9]} 43... Be8 {[%clk 0:00:08.9]} 44. c4 {[%clk
0:00:14.6]} 44... bxc4 {[%clk 0:00:08.9]} 45. Bxc4 {[%clk 0:00:15.5]} 45... Bc6
{[%clk 0:00:09.1]} 46. b5 {[%clk 0:00:15]} 46... Bb7 {[%clk 0:00:09.1]} 47. Kd2
{[%clk 0:00:14.8]} 47... g5 {[%clk 0:00:09.2]} 48. Kc3 {[%clk 0:00:15.4]} 48...
Kg7 {[%clk 0:00:09.6]} 49. Kd4 {[%clk 0:00:16.3]} 49... Kf6 {[%clk 0:00:10]} 50.
Bd5 {[%clk 0:00:16.9]} 50... Bc8 {[%clk 0:00:08.4]} 51. b6 {[%clk 0:00:17]}
51... h5 {[%clk 0:00:08.1]} 52. b7 {[%clk 0:00:16.9]} 52... Bxb7 {[%clk
0:00:08.6]} 53. Bxb7 {[%clk 0:00:17.8]} 53... g4 {[%clk 0:00:09.1]} 54. Ke4
{[%clk 0:00:17.6]} 54... Kg5 {[%clk 0:00:09.6]} 55. Bc8 {[%clk 0:00:15.3]} 55...
h4 {[%clk 0:00:09.7]} 56. Bb7 {[%clk 0:00:12.5]} 56... h3 {[%clk 0:00:09.6]} 57.
Kd3 {[%clk 0:00:12.5]} 57... f3 {[%clk 0:00:09.4]} 58. Bxf3 {[%clk 0:00:08.6]}
58... gxf3 {[%clk 0:00:09.1]} 59. Ke3 {[%clk 0:00:09.5]} 59... h2 {[%clk
0:00:09.6]} 60. Kxf3 {[%clk 0:00:10.4]} 60... h1=Q+ {[%clk 0:00:10.1]} 61. Ke3
{[%clk 0:00:11.3]} 61... Qd5 {[%clk 0:00:10.1]} 62. f3 {[%clk 0:00:12.2]} 62...
Kf5 {[%clk 0:00:10.1]} 0-1